bitfinex-derivatives/quotes_ETHF0:USTF0_20251008
["timestamp","ask_amount","ask_price","bid_price","bid_amount"]
[1759884593204,3.97069432,4480.6,4480.5,0.92989]
[1759884593897,3.97069432,4480.6,4480.5,1.23159]
[1759884594203,2.92769432,4480.6,4480.5,1.62799]
[1759884594402,3.22819432,4480.6,4480.5,1.85399]
[1759884594604,3.22819432,4480.6,4480.5,1.62799]
[1759884594809,3.97069432,4480.6,4480.5,1.66999]
[1759884595009,3.97069432,4480.6,4479.8,3.2078]
[1759884595010,1.043,4479.9,4479.8,3.2078]
[1759884595209,1.043,4479.9,4479.8,3.7352]
[1759884595410,1.043,4479.9,4479.8,1.2685]
[1759884595809,0.3005,4479.9,4479.8,1.67006]
[1759884596007,0.4576,4480.3,4480.2,1.00562]
[1759884596008,0.7581,4480.3,4480.2,1.00562]
[1759884596209,0.7581,4480.3,4480.2,1.67102]
[1759884596406,3.1653302,4480.3,4480.2,1.67102]
[1759884596606,3.9078302,4480.3,4480.2,1.0435]
[1759884597110,3.9078302,4480.3,4480.2,0.5274]
[1759884597310,3.9078302,4480.3,4480.2,1.2414]
[1759884597504,3.4502302,4480.3,4480.2,1.0164]
[1759884597703,3.4502302,4480.3,4480.2,1.2414]
[1759884598720,3.4502302,4480.3,4480.2,1.0164]
[1759884599109,3.4502302,4480.3,4480.2,1.2414]
[1759884599417,3.8924302,4480.3,4480.2,0.3024]
[1759884599717,2.8648302,4480.3,4480.2,1.2414]
[1759884599916,3.1711302,4480.3,4480.2,1.0164]
[1759884600116,0.7485,4480.3,4480.2,1.2414]
[1759884600314,3.20188459,4480.3,4480.2,1.2414]
[1759884600608,1.04075127,4480.6,4480.5,1.57329]
[1759884600809,1.04075127,4480.6,4480.5,1.62109]
[1759884601015,3.25480011,4480.6,4480.5,1.79829]
[1759884601207,2.94850011,4480.6,4480.5,1.79829]
[1759884602109,3.25480011,4480.6,4480.5,1.79829]
[1759884602513,3.54520011,4480.6,4480.0,0.6023]
[1759884602714,1.0389,4480.1,4480.0,1.10724]
[1759884602918,1.0389,4480.1,4480.0,1.33224]
[1759884603118,1.0389,4480.1,4480.0,1.39614]
[1759884603313,1.0389,4480.1,4480.0,1.62114]
[1759884604018,0.99826,4479.9,4479.7,0.40156]
[1759884604212,0.99826,4479.9,4479.3,3.2078]
[1759884604213,0.5967,4479.5,4479.4,0.7057]
[1759884604418,1.0389,4479.5,4479.4,0.5056]
[1759884604617,3.89782911,4479.5,4479.4,0.5056]
[1759884604916,4.06792911,4479.5,4479.4,0.5056]
[1759884605120,3.89782911,4479.5,4479.4,1.33229]
[1759884605914,2.85892911,4479.5,4479.4,1.62119]
[1759884606216,0.3063,4480.3,4480.2,1.39612]
[1759884606420,0.3063,4480.3,4480.2,2.38134066]
[1759884606719,3.2419036,4480.3,4480.2,2.38134066]
[1759884607117,3.5323036,4480.3,4480.2,2.38134066]
[1759884607413,3.9745036,4480.3,4480.2,0.225]
[1759884607613,3.9338236,4480.3,4480.1,3.60933]
[1759884607814,1.44043,4480.1,4480.0,0.40153]
[1759884608016,1.44043,4480.1,4480.0,0.62653]
[1759884608222,1.44045,4479.9,4479.8,0.40155]
[1759884608521,3.88351825,4479.9,4479.8,0.62655]
[1759884609415,1.44046,4479.8,4479.7,0.40157]
[1759884609623,1.44046,4479.8,4479.7,0.62657]
[1759884609816,4.27715319,4479.8,4479.7,0.62657]
[1759884610613,0.40158,4479.6,4479.5,3.2078]
[1759884610817,1.44048,4479.6,4479.5,3.4328]
[1759884611017,4.37420391,4479.6,4479.5,3.2078]
[1759884611220,4.37420391,4479.6,4479.5,3.4328]
[1759884611723,4.37420391,4479.6,4479.5,3.2078]
[1759884612326,0.40166,4478.7,4478.6,0.4251]
[1759884612524,3.60946,4478.7,4478.5,0.00167205]
[1759884612817,6.57373437,4478.7,4478.5,0.00167205]
[1759884613020,6.17207437,4478.7,4478.6,0.7057]
[1759884613318,6.17207437,4478.7,4478.6,0.9946]
[1759884613514,0.68467438,4478.7,4478.6,1.2196]
[1759884613711,0.68467438,4478.7,4478.6,0.6501]
[1759884614421,0.61456,4479.8,4479.6,0.40157]
[1759884614625,0.61456,4479.8,4479.7,0.4251]
[1759884614916,1.08127997,4479.8,4479.7,0.4251]
[1759884615118,0.40158,4479.6,4479.5,0.6023]
[1759884616623,0.40156,4479.8,4479.6,0.4251]
[1759884616823,0.46661888,4479.7,4479.6,0.4251]
[1759884617023,3.412659,4479.7,4479.6,0.4251]
[1759884617226,2.94604012,4479.7,4479.6,0.4251]
[1759884618720,0.40158,4479.6,4479.1,0.4251]
[1759884618920,3.60941,4479.2,4479.1,0.4251]
[1759884619326,6.44516467,4479.2,4479.1,0.7057]
[1759884620230,6.44516467,4479.2,4479.1,0.4251]
[1759884621430,6.44516467,4479.2,4479.1,0.7057]
[1759884621631,6.44516467,4479.2,4479.1,0.9946]
[1759884621836,6.04355467,4479.2,4479.1,0.7057]
[1759884622029,6.04355467,4479.2,4479.1,0.9946]
[1759884623334,2.83575467,4479.2,4479.1,0.9946]
[1759884623537,6.04355467,4479.2,4479.1,0.9946]
[1759884623832,6.07447466,4479.2,4479.1,0.9946]
[1759884624434,0.225,4479.7,4479.1,0.9946]
[1759884624435,0.225,4479.7,4479.6,1.39618]
[1759884624734,3.4328,4480.0,4479.8,0.68216]
[1759884624938,3.2078,4480.0,4479.9,0.7057]
[1759884625233,6.10295458,4480.0,4479.9,0.9946]
[1759884627939,6.10295458,4480.0,4479.9,0.7057]
[1759884628940,6.10295458,4480.0,4479.9,1.0153]
[1759884630642,2.89515458,4480.0,4479.9,1.0153]
[1759884631737,0.40155,4480.0,4479.9,0.4773]
[1759884632035,0.40155,4479.9,4479.8,0.4773]
[1759884632236,3.4328,4479.9,4479.2,0.71561]
[1759884632441,0.40159,4479.5,4479.3,0.8789]
[1759884632740,0.40159,4479.5,4479.4,0.4773]
[1759884633139,8.13493632,4479.5,4478.6,1.67029018]
[1759884633338,3.2078,4478.8,4478.7,1.1009]
[1759884633645,6.11773632,4478.8,4478.7,1.1009]
[1759884634245,6.11773632,4478.8,4478.7,1.50256]
[1759884634445,6.11773632,4478.8,4478.7,1.72756]
[1759884634945,2.90993632,4478.8,4478.7,1.72756]
[1759884635246,3.2078,4479.7,4479.6,1.50248]
[1759884635742,6.09017376,4479.7,4479.6,0.4773]
[1759884636150,0.40159,4479.5,4479.4,0.40159]
[1759884636443,0.40159,4479.5,4479.0,0.4047]
[1759884636444,2.96541339,4479.5,4479.0,0.4937]
[1759884636745,0.6266,4479.4,4479.2,0.87891]
[1759884636942,0.6266,4479.4,4479.3,0.4773]
[1759884637446,0.40161,4479.2,4479.1,0.87892]
[1759884637847,2.94973533,4479.2,4479.1,0.87892]
[1759884638149,3.26873251,4479.3,4479.2,0.4773]
[1759884638542,0.225,4479.3,4478.8,0.40164]
[1759884638842,0.40166,4478.7,4478.6,0.87896]
[1759884639045,0.40166,4478.7,4478.6,0.4773]
[1759884639248,3.24477397,4478.7,4478.6,0.4773]
[1759884639842,3.24477397,4478.7,4478.5,0.00167205]
[1759884640150,0.225,4478.6,4478.5,0.00167205]
[1759884640344,0.225,4478.6,4478.5,0.95157205]
[1759884640546,2.87379462,4478.6,4478.5,1.26157205]
[1759884641143,0.40166,4478.7,4478.6,1.16757]
[1759884641448,3.32451625,4478.7,4478.6,0.4632]
[1759884642054,3.32451625,4478.7,4478.5,0.00167205]
[1759884643149,0.225,4478.6,4478.5,0.00167205]
[1759884643546,3.13786517,4478.6,4478.5,1.35324205]
[1759884643751,3.13786517,4478.6,4478.5,0.95157205]
[1759884643952,2.91286517,4478.6,4478.5,1.26157205]
[1759884644144,2.91286517,4478.6,4478.5,1.66324205]
[1759884644451,0.40166,4478.7,4478.6,0.7659]
[1759884644646,0.40166,4478.7,4478.6,0.4632]
[1759884644952,3.36062551,4478.7,4478.5,0.00167205]
[1759884645152,0.225,4478.6,4478.5,0.00167205]
[1759884645450,3.11326507,4478.6,4478.5,0.64887205]
[1759884650551,3.11326507,4478.6,4478.5,0.00167205]
[1759884650753,3.11326507,4478.6,4478.5,0.64887205]
[1759884651050,3.11326507,4478.6,4478.5,1.35324205]
[1759884651247,3.28993507,4478.6,4478.5,1.66324205]
[1759884652149,2.88826507,4478.6,4478.5,1.66324205]
[1759884652351,3.28993507,4478.6,4478.5,1.66324205]
[1759884652552,0.40167,4478.6,4478.5,1.66324205]
[1759884652750,3.3459859,4478.6,4478.5,1.66324205]
[1759884653846,3.3459859,4478.6,4478.5,1.26157205]
[1759884654854,3.3459859,4478.6,4478.5,0.95157205]
[1759884655256,3.3459859,4478.6,4478.5,1.35324205]
[1759884656348,3.3459859,4478.6,4478.5,0.95157205]
[1759884656647,3.3459859,4478.6,4478.5,0.64887205]
[1759884657244,3.3459859,4478.6,4478.5,1.35324205]
[1759884657656,3.3459859,4478.6,4478.5,0.64887205]
[1759884658154,3.3459859,4478.6,4478.5,1.05054205]
[1759884658456,3.5709859,4478.6,4478.5,0.00167205]
[1759884659147,3.5709859,4478.6,4478.5,0.47237205]
[1759884659352,3.5709859,4478.6,4478.5,0.64557205]
[1759884659958,3.5709859,4478.6,4478.5,1.24647205]
[1759884660350,3.3459859,4478.6,4478.5,1.24647205]
[1759884660552,3.3459859,4478.6,4478.5,1.64814205]
[1759884661054,2.9443159,4478.6,4478.5,1.64814205]
[1759884661446,3.2078,4479.0,4478.9,1.00254]
[1759884661650,3.2078,4479.0,4478.9,1.47324]
[1759884661859,6.07845343,4479.0,4478.9,1.47324]
[1759884662063,0.40165,4478.8,4478.6,0.4707]
[1759884662255,0.62666,4478.7,4478.5,0.17487205]
[1759884662560,3.4896917,4478.7,4478.6,0.4707]
[1759884663649,3.4896917,4478.7,4478.5,0.00167205]
[1759884663853,3.4896917,4478.7,4478.5,0.17487205]
[1759884664054,3.4896917,4478.7,4478.6,0.7639]
[1759884665161,3.95628711,4478.7,4478.6,0.4707]
[1759884666565,3.95628711,4478.7,4478.5,0.00167205]
[1759884666765,0.46659541,4478.6,4478.5,0.00167205]
[1759884667063,3.41885126,4478.6,4478.5,0.64557205]
[1759884667664,3.41885126,4478.6,4478.5,0.93877205]
[1759884668254,3.41885126,4478.6,4478.5,1.24647205]
[1759884668762,3.41885126,4478.6,4478.5,0.93877205]
[1759884671363,3.41950618,4478.6,4478.5,0.93877205]
[1759884671964,3.41950618,4478.6,4478.5,1.64814205]
[1759884672169,3.41950618,4478.6,4478.5,6.64814205]
[1759884672464,2.95225585,4478.6,4478.5,6.64814205]
[1759884672868,3.2078,4479.0,4478.9,1.47324]
[1759884673062,3.67499579,4479.0,4478.9,2.2337788]
[1759884673366,6.58077971,4479.0,4478.9,2.2337788]
[1759884674060,6.11358392,4479.0,4478.9,2.2337788]
[1759884675565,0.225,4479.5,4479.4,1.0716]
[1759884675566,3.2078,4479.5,4479.4,1.0716]
[1759884675865,6.04522498,4479.5,4479.4,2.2337288]
[1759884677060,2.83742498,4479.5,4479.4,2.2337288]
[1759884677468,3.60934,4480.0,4479.8,0.69476]
[1759884677662,3.83434,4480.0,4479.9,0.4707]
[1759884677863,4.30075343,4480.0,4479.9,0.4707]
[1759884678163,6.79580572,4480.0,4479.9,0.7639]
[1759884678666,6.79580572,4480.0,4479.9,0.4707]
[1759884678963,0.40157,4479.7,4479.6,0.4707]
[1759884679354,0.40156,4479.9,4479.7,0.69477]
[1759884679560,0.40156,4479.9,4479.8,0.4707]
[1759884679761,3.25046019,4479.9,4479.8,0.4707]
[1759884680571,3.25046019,4479.9,4479.8,1.47316]
[1759884680572,2.84890019,4479.9,4479.8,1.47316]
[1759884682070,2.84890019,4479.9,4479.8,1.69816]
[1759884682465,2.84890019,4479.9,4479.8,0.4707]
[1759884682971,3.25045019,4479.9,4479.8,0.87226]
[1759884684467,3.25045019,4479.9,4479.8,0.4707]
[1759884685871,3.25045019,4479.9,4479.8,0.87226]
[1759884688767,2.84890019,4479.9,4479.8,0.87226]
[1759884688972,2.84890019,4479.9,4479.8,1.17566]
[1759884689173,3.25045019,4479.9,4479.8,0.4707]
[1759884689367,3.25045019,4479.9,4479.8,1.16256]
[1759884690073,3.25045019,4479.9,4479.8,1.45966]
[1759884690273,2.84890019,4479.9,4479.8,1.45966]
[1759884690468,2.84890019,4479.9,4479.8,2.2201988]
[1759884691577,3.25045019,4479.9,4479.8,2.2201988]
[1759884692474,2.84890019,4479.9,4479.8,2.2201988]
[1759884693174,3.25045019,4479.9,4479.8,2.2201988]
[1759884693575,2.84890019,4479.9,4479.8,2.2201988]
[1759884694973,2.84890019,4479.9,4479.8,2.4451988]
[1759884701277,3.2078,4479.9,4479.8,0.4707]
[1759884701486,3.2078,4479.9,4479.8,2.0232388]
[1759884701686,6.06549344,4479.9,4479.8,2.0232388]
[1759884702281,2.85769344,4479.9,4479.8,2.0232388]
[1759884707694,2.85769344,4479.9,4479.8,2.4247988]
[1759884709494,2.85769344,4479.9,4479.8,3.1853376]
[1759884709700,0.00185127,4480.6,4480.5,1.59409]
[1759884709989,2.95403244,4480.6,4480.5,1.81909]
[1759884710389,0.00185127,4480.6,4480.5,1.81909]
[1759884712595,0.00185127,4480.6,4480.5,2.5796288]
[1759884713592,0.00185127,4480.6,4480.5,1.1926]
[1759884713796,2.95178815,4480.6,4480.5,0.9159]
[1759884714098,2.95178815,4480.6,4480.5,1.4176]
[1759884715101,2.95178815,4480.6,4480.5,1.1926]
[1759884715299,2.95178815,4480.6,4480.5,1.4176]
[1759884715702,2.95178815,4480.6,4480.5,1.1926]
[1759884716095,2.95178815,4480.6,4480.5,1.4176]
[1759884716597,2.95178815,4480.6,4480.5,1.1409]
[1759884717604,2.95178815,4480.6,4479.5,0.57478]
[1759884717605,0.40157,4479.7,4479.5,0.57478]
[1759884717799,0.40161,4479.2,4479.0,0.1732]
[1759884718002,3.2078,4479.1,4479.0,0.5962]
[1759884718303,6.06066463,4479.1,4479.0,0.5962]
[1759884718800,6.7516197,4479.1,4479.0,0.5962]
[1759884719305,6.75151369,4479.1,4478.7,0.7605388]
[1759884719501,0.40163,4479.0,4478.8,0.423]
[1759884719701,0.40166,4478.7,4478.6,0.423]
[1759884720002,3.55924322,4478.9,4478.7,0.423]
[1759884720298,3.55924322,4478.9,4478.5,0.17137205]
[1759884720299,3.29158918,4478.7,4478.5,0.17137205]
[1759884720502,3.65046798,4478.8,4477.5,0.5927]
[1759884720503,1.0042,4478.5,4477.5,0.5927]
[1759884720800,3.2078,4477.8,4477.7,1.0552388]
[1759884721007,3.2078,4477.8,4477.7,1.7773388]
[1759884721203,2.94713856,4477.8,4477.7,1.7773388]
[1759884721402,3.2078,4478.9,4478.5,0.1697]
[1759884721608,3.2078,4478.9,4478.8,1.4826388]
[1759884721809,3.89833625,4478.9,4478.8,1.4826388]
[1759884722002,6.84547481,4478.9,4478.8,0.7221]
[1759884722307,6.84547481,4478.9,4478.0,0.1697]
[1759884722308,11.84547481,4478.9,4478.0,0.1697]
[1759884722509,3.2078,4478.1,4478.0,0.5927]
[1759884722704,3.60951,4478.1,4478.0,1.6523388]
[1759884723005,6.13187871,4478.1,4478.0,1.6523388]
[1759884723205,6.13187871,4478.1,4478.0,1.9470388]
[1759884723613,2.92407871,4478.1,4478.0,1.9470388]
[1759884724111,3.2078,4478.2,4478.1,0.423]
[1759884724311,3.2078,4478.2,4478.1,1.12381]
[1759884724510,2.91193626,4478.2,4478.1,1.41851]
[1759884724814,3.2078,4478.7,4478.6,0.5938]
[1759884725018,3.2078,4478.7,4478.6,2.1790088]
[1759884725214,6.14452866,4478.7,4478.6,2.1790088]
[1759884726214,6.14452866,4478.7,4478.6,1.41847]
[1759884727618,2.93672866,4478.7,4478.6,1.41847]
[1759884728117,3.31847645,4479.1,4479.0,1.58813]
[1759884728313,3.2078,4479.2,4479.1,0.423]
[1759884728520,3.2078,4479.2,4479.1,0.7221]
[1759884728718,6.05084045,4479.2,4479.1,1.0168]
[1759884729422,6.05084045,4479.2,4479.1,2.0023388]
[1759884730320,3.2078,4479.2,4479.1,2.0023388]
[1759884731518,3.2078,4480.2,4480.1,1.0168]
[1759884731722,0.2935,4480.5,4480.4,1.1192]
[1759884732016,3.2078,4480.8,4480.4,1.4183]
[1759884732224,3.2078,4480.8,4480.5,1.1865]
[1759884732412,3.2078,4480.8,4480.5,1.9470388]
[1759884732608,2.84327313,4480.6,4480.5,1.9470388]
[1759884732814,3.84097313,4480.6,4480.5,1.7773388]
[1759884733015,3.84097313,4480.6,4480.5,1.0168]
[1759884733412,3.84097313,4480.6,4480.1,1.00381]
[1759884733413,0.9977,4480.1,4480.0,41.223]
[1759884733714,0.9977,4480.5,4480.4,1.0168]
[1759884734119,3.93807528,4480.5,4480.4,1.0168]
[1759884734720,3.23387528,4480.5,4480.4,1.0168]
[1759884735219,2.94037528,4480.5,4480.4,1.0168]
[1759884736026,0.00185127,4480.6,4480.5,1.58799]
[1759884736726,0.29535127,4480.6,4480.5,1.58799]
[1759884736926,0.29535127,4480.6,4480.5,2.53483234]
[1759884737418,0.00185127,4480.6,4480.5,2.75983234]
[1759884738622,0.00185127,4480.6,4480.5,2.53483234]
[1759884738823,0.00185127,4480.6,4480.5,2.75983234]
[1759884740025,0.00185127,4480.6,4480.5,2.53483234]
[1759884740227,0.00185127,4480.6,4480.5,2.75983234]
[1759884741229,0.58755127,4480.6,4480.5,2.75983234]
[1759884741420,0.00185127,4480.6,4480.5,2.75983234]
[1759884741627,0.00185127,4480.6,4480.5,2.53483234]
[1759884741824,0.28545127,4480.6,4480.5,2.75983234]
[1759884742729,0.00185127,4480.6,4480.5,2.75983234]
[1759884743533,0.56265127,4480.6,4480.5,2.53483234]
[1759884743726,0.99415127,4480.6,4480.5,2.59013234]
[1759884744028,0.99415127,4480.6,4480.5,1.87243234]
[1759884744228,0.99415127,4480.6,4480.5,2.28243234]
[1759884744529,0.99415127,4480.6,4480.5,2.57523234]
[1759884744930,0.56265127,4480.6,4480.5,2.52193234]
[1759884745333,0.99415127,4480.6,4480.5,2.52193234]
[1759884745535,0.99415127,4480.6,4480.5,2.74693234]
[1759884746034,3.86771278,4480.6,4480.5,2.57523234]
[1759884746828,3.43621278,4480.6,4480.5,2.74693234]
[1759884747236,4.26020278,4480.6,4480.5,1.87243234]
[1759884747439,4.26020278,4480.6,4480.5,1.34833234]
[1759884747728,4.26020278,4480.6,4480.5,0.91129]
[1759884747932,4.26020278,4480.6,4480.5,1.34279]
[1759884748828,4.26020278,4480.6,4480.5,0.91129]
[1759884749029,3.85871278,4480.6,4480.5,0.91129]
[1759884749233,3.85871278,4480.6,4480.5,1.34279]
[1759884750233,3.43621278,4480.6,4480.5,1.81289]
[1759884750433,3.85871278,4480.6,4480.5,1.63619]
[1759884750631,0.2735,4479.8,4479.7,4.96421164]
[1759884750931,0.96048,4479.6,4479.5,0.68638]
[1759884751136,0.5589,4479.3,4479.2,5.56595234]
[1759884751337,0.9814,4479.3,4479.2,5.79095234]
[1759884752035,0.5589,4479.3,4479.2,5.56595234]
[1759884752237,0.5589,4479.3,4479.2,2.58315234]
[1759884753137,0.2735,4479.3,4479.2,2.35815234]
[1759884753333,0.9814,4479.7,4479.6,0.7163]
[1759884753537,0.9814,4479.7,4479.6,1.88814234]
[1759884753738,3.85558304,4479.7,4479.6,1.88814234]
[1759884754040,3.85558304,4479.7,4479.6,1.23164234]
[1759884754235,4.25715304,4479.7,4479.5,0.40158]
[1759884754543,0.9814,4479.6,4479.5,0.62658]
[1759884754831,0.5589,4479.1,4479.0,1.66314234]
[1759884755032,0.9814,4479.1,4479.0,1.17184234]
[1759884755238,3.9300182,4479.1,4479.0,1.34847234]
[1759884755539,3.9300182,4479.1,4479.0,1.57347234]
[1759884755940,3.9300182,4479.1,4479.0,0.225]
[1759884756239,3.9300182,4479.1,4478.9,0.94684234]
[1759884756435,1.1594,4479.0,4478.9,1.57348234]
[1759884756740,3.99564865,4479.0,4478.9,1.34848234]
[1759884758740,3.99564865,4479.0,4478.9,0.40164]
[1759884759043,3.99564865,4479.0,4478.9,1.34848234]
[1759884762237,4.39727865,4479.0,4478.9,1.34848234]
[1759884763239,3.99564865,4479.0,4478.9,1.34848234]
[1759884763942,4.39727865,4479.0,4478.9,1.34848234]
[1759884765037,4.62227865,4479.0,4478.9,1.34848234]
[1759884765244,1.40187,4478.6,4478.5,1.34851234]
[1759884765635,3.96050684,4478.6,4478.5,0.40167]
[1759884765939,3.96050684,4478.6,4478.5,1.34851234]
[1759884767232,2.96030684,4478.6,4478.5,2.75481234]
[1759884767438,3.2078,4479.2,4479.1,1.41422]
[1759884767439,3.4879,4479.2,4479.1,1.41422]
[1759884767635,4.208,4479.2,4479.1,1.41422]
[1759884767837,7.07613718,4479.2,4478.5,0.1687]
[1759884768143,1.0002,4478.9,4478.8,0.40165]
[1759884768338,1.0002,4478.9,4478.8,0.69415]
[1759884768539,3.8990741,4478.9,4478.8,1.12465]
[1759884769242,3.8990741,4478.9,4478.8,1.41425]
[1759884769644,4.3007141,4478.9,4478.8,0.40165]
[1759884770442,3.8990741,4478.9,4478.8,0.40165]
[1759884770844,3.8990741,4478.9,4478.8,0.69415]
[1759884771245,3.8990741,4478.9,4478.8,1.12465]
[1759884772045,3.8990741,4478.9,4478.8,1.41425]
[1759884772745,3.4642741,4478.9,4478.8,1.41425]
[1759884773046,2.8988741,4478.9,4478.8,1.63925]
[1759884774036,3.1789741,4478.9,4478.8,1.63925]
[1759884774236,2.8988741,4478.9,4478.8,1.63925]
[1759884775843,0.4348,4479.5,4479.4,0.40159]
[1759884776047,1.19198,4479.5,4479.4,1.41419]
[1759884776346,4.29620545,4479.5,4479.4,1.41419]
[1759884776548,4.46240545,4479.5,4479.4,0.69409]
[1759884777241,4.46240545,4479.5,4479.1,1.60234234]
[1759884777242,0.68041,4479.3,4479.2,0.4016]
[1759884777448,1.36841,4479.3,4479.2,0.6266]
[1759884777639,4.28346371,4479.3,4479.2,0.9003]
[1759884778446,4.28346371,4479.3,4479.2,0.6753]
[1759884778644,0.1788,4479.0,4478.5,1.19204853]
[1759884778834,0.1788,4479.0,4478.0,1.58862042]
[1759884778835,1.36847,4478.6,4478.0,1.58862042]
[1759884779040,1.14194,4477.8,4477.7,0.4324344]
[1759884779240,1.36694,4477.8,4477.7,0.4324344]
[1759884779446,4.11682113,4477.8,4477.7,0.7061344]
[1759884779650,4.11682113,4477.8,4477.7,1.94097674]
[1759884779651,3.15488113,4477.8,4477.7,1.94097674]
[1759884779837,2.92988113,4477.8,4477.7,1.94097674]
[1759884780040,3.89182113,4477.8,4477.7,1.94097674]
[1759884780235,3.49008113,4477.8,4477.7,1.94097674]
[1759884780442,3.49008113,4477.8,4477.7,1.65297674]
[1759884780639,3.67008113,4477.8,4477.7,0.0023344]
[1759884781638,0.5602,4476.7,4476.6,1.65064234]
[1759884781948,0.7402,4476.6,4476.5,0.83195]
[1759884782140,0.7852,4476.6,4476.5,0.4301]
[1759884782345,3.6756935,4476.6,4476.5,0.8733]
[1759884782845,2.91084742,4476.6,4476.5,1.16347957]
[1759884783044,0.2788,4477.8,4477.7,1.39354]
[1759884783245,0.2788,4477.8,4477.7,2.34038234]
[1759884783546,2.88161934,4477.8,4477.7,2.34038234]
[1759884783749,3.2078,4477.9,4477.8,0.4301]
[1759884784052,3.20944997,4477.9,4477.8,0.9918]
[1759884784938,3.2078,4478.9,4478.8,1.11975]
[1759884785145,0.40154,4480.1,4479.4,0.83169]
[1759884785146,3.2078,4479.5,4479.4,0.83169]
[1759884785545,6.12339377,4479.5,4479.4,0.83169]
[1759884785746,6.12339377,4479.5,4479.4,0.4301]
[1759884785943,6.12570389,4479.5,4479.3,0.4016]
[1759884786145,6.12570389,4479.5,4479.4,0.4301]
[1759884790444,2.91790389,4479.5,4479.4,0.9918]
[1759884792851,0.2788,4480.6,4480.5,1.00109]
[1759884793047,0.76585814,4480.6,4480.5,1.56279]
[1759884793248,0.2788,4480.6,4480.5,1.56279]
[1759884793446,3.12861173,4480.6,4480.5,1.56279]
[1759884793642,2.84981173,4480.6,4480.5,1.56279]
[1759884793954,0.00275251,4480.6,4480.5,1.56472992]
[1759884794253,2.85256424,4480.6,4480.5,1.56472992]
[1759884795548,2.85256424,4480.6,4480.5,1.78972992]
[1759884796147,2.85256424,4480.6,4480.5,1.56472992]
[1759884796350,3.13136424,4480.6,4480.5,1.78972992]
[1759884796550,2.85256424,4480.6,4480.5,1.78972992]
[1759884797057,3.13136424,4480.6,4480.5,1.78972992]
[1759884798349,2.85256424,4480.6,4480.5,1.78972992]
[1759884798551,2.85256424,4480.6,4480.5,4.99752992]
[1759884799453,2.51e-06,4480.6,4480.5,7.69700623]
[1759884800154,3.2078,4481.8,4481.7,1.39319]
[1759884800563,6.14228599,4481.8,4481.7,1.39319]
[1759884801153,6.14499537,4481.8,4481.7,1.39319]
[1759884801750,6.70519537,4481.8,4481.7,0.83149]
[1759884803458,6.70519537,4481.8,4481.7,1.10519]
[1759884804647,3.21599537,4481.8,4481.7,1.39319]
[1759884805455,2.93719537,4481.8,4481.7,1.39319]
[1759884806758,0.00270938,4481.8,4481.7,1.39319]
[1759884807161,0.26990938,4481.8,4481.7,1.39319]
[1759884807360,0.00270938,4481.8,4481.7,1.39319]
[1759884808061,0.26990938,4481.8,4481.7,1.39319]
[1759884808264,0.00270938,4481.8,4481.7,1.39319]
[1759884813370,0.26990938,4481.8,4481.7,1.39319]
[1759884813662,0.00270938,4481.8,4481.7,1.39319]
[1759884817068,0.00270938,4481.8,4481.7,2.15241031]
[1759884818056,0.55670938,4481.8,4481.7,1.39319]
[1759884818262,3.50443146,4481.8,4481.7,2.37741031]
[1759884818860,3.21763146,4481.8,4481.7,2.37741031]
[1759884819262,3.21763146,4481.8,4481.7,2.15241031]
[1759884819463,3.90581146,4481.8,4481.7,2.15241031]
[1759884819663,3.50443146,4481.8,4481.7,2.37741031]
[1759884819863,3.50443146,4481.8,4481.7,1.59071031]
[1759884820065,3.67783146,4481.8,4481.7,1.81571031]
[1759884820366,4.16211042,4481.8,4481.7,1.81571031]
[1759884820663,3.98871042,4481.8,4481.7,2.36091031]
[1759884821262,3.98871042,4481.8,4481.7,2.13591031]
[1759884821568,3.98871042,4481.8,4481.7,2.36091031]
[1759884821764,4.39009042,4481.8,4481.7,2.08371031]
[1759884822367,3.50443146,4481.8,4481.7,1.85871031]
[1759884822568,3.50443146,4481.8,4481.7,1.59071031]
[1759884822569,4.07921146,4481.8,4481.7,1.59071031]
[1759884822767,4.07921146,4481.8,4481.0,0.1747]
[1759884822768,1.00352,4481.5,4481.0,0.1747]
[1759884822965,0.40148,4480.7,4480.5,0.17143992]
[1759884823171,4.67710362,4480.6,4480.0,0.1695]
[1759884823370,0.40153,4480.1,4480.0,0.1695]
[1759884823566,0.48508331,4480.2,4480.1,0.40153]
[1759884823765,3.2078,4481.2,4481.1,0.2772]
[1759884823967,3.69604995,4481.2,4481.1,1.30442031]
[1759884824173,6.59518184,4481.2,4481.1,0.76211814]
[1759884824464,11.59518184,4481.2,4481.1,0.00289783]
[1759884824672,0.40149,4480.6,4480.5,0.1747]
[1759884824973,3.60929,4480.6,4480.5,0.1747]
[1759884825165,12.05019622,4480.6,4480.5,0.1747]
[1759884825360,0.40152,4480.2,4480.1,0.4184]
[1759884825565,0.40152,4480.2,4480.1,0.4212568]
[1759884825767,3.36683611,4480.2,4480.1,0.9664568]
[1759884825966,2.00731476,4482.3,4481.7,0.6864]
[1759884825967,0.28170938,4481.8,4481.7,0.6864]
[1759884826169,0.4302,4481.7,4481.2,0.4184]
[1759884826474,0.5589,4481.1,4481.0,1.08784]
[1759884826773,3.40817108,4481.1,4481.0,1.08784]
[1759884826969,0.5589,4480.6,4480.5,0.1747]
[1759884827174,0.5589,4480.4,4480.3,0.40151]
[1759884827367,0.9891,4480.4,4480.3,0.81991]
[1759884827568,3.41134699,4480.4,4480.3,1.08791]
[1759884828278,2.85244699,4480.4,4480.3,1.36511]
[1759884828573,0.226,4480.5,4480.3,1.36511]
[1759884828771,0.505,4480.5,4480.4,0.9636]
[1759884828979,0.226,4480.5,4480.4,0.9636]
[1759884829176,3.08466933,4480.5,4480.4,0.9636]
[1759884830172,2.85866933,4480.5,4480.4,0.9636]
[1759884830574,0.226,4480.7,4480.6,0.9636]
[1759884830770,0.504,4480.7,4480.6,0.9636]
[1759884830972,3.45185396,4480.7,4480.6,0.9636]
[1759884831174,2.94785396,4480.7,4480.6,0.9636]
[1759884831667,0.96036,4480.9,4480.8,0.6864]
[1759884831872,1.61556,4480.9,4480.8,0.6864]
[1759884832077,0.7101,4480.7,4480.6,0.4184]
[1759884832268,0.9891,4480.7,4480.6,0.4184]
[1759884832465,0.9891,4480.7,4480.1,0.4212568]
[1759884832466,0.9891,4480.2,4480.1,0.4212568]
[1759884832677,1.2151,4480.2,4480.1,0.0028568]